[Event "Live Chess"]
[Site "Chess.com"]
[Date "2024.06.02"]
[Round "-"]
[White "degringolade64"]
[Black "RichardABates"]
[Result "0-1"]
[WhiteElo "2082"]
[BlackElo "2373"]
[TimeControl "300"]
[EndTime "8:17:23 PDT"]
[Termination "RichardABates won by resignation"]

1. e4 {[%clk 0:04:56.4]} 1... c5 {[%clk 0:04:58.2]} 2. Nf3 {[%clk 0:04:54.6]}
2... d6 {[%clk 0:04:57.1]} 3. Bb5+ {[%clk 0:04:52.8]} 3... Nd7 {[%clk
0:04:55.5]} 4. Ba4 {[%clk 0:04:51.3]} 4... Nf6 {[%clk 0:04:53.1]} 5. O-O {[%clk
0:04:50.3]} 5... e5 {[%clk 0:04:51.2]} 6. Re1 {[%clk 0:04:43.4]} 6... Be7 {[%clk
0:04:49.2]} 7. c3 {[%clk 0:04:41.8]} 7... O-O {[%clk 0:04:47.7]} 8. d4 {[%clk
0:04:40.9]} 8... cxd4 {[%clk 0:04:44.2]} 9. cxd4 {[%clk 0:04:40.8]} 9... exd4
{[%clk 0:04:43.2]} 10. Nxd4 {[%clk 0:04:35.5]} 10... Nc5 {[%clk 0:04:41.7]} 11.
Bc2 {[%clk 0:04:33.9]} 11... Re8 {[%clk 0:04:36]} 12. Nc3 {[%clk 0:04:31]} 12...
h6 {[%clk 0:04:27.9]} 13. h3 {[%clk 0:04:21.4]} 13... Bf8 {[%clk 0:04:26.4]} 14.
Qf3 {[%clk 0:04:17.4]} 14... d5 {[%clk 0:04:08.4]} 15. e5 {[%clk 0:04:09.5]}
15... Nfe4 {[%clk 0:04:06.5]} 16. Bf4 {[%clk 0:03:21.6]} 16... Nxc3 {[%clk
0:03:36.1]} 17. bxc3 {[%clk 0:03:16.5]} 17... Ne6 {[%clk 0:03:21.4]} 18. Be3
{[%clk 0:03:04.2]} 18... Ng5 {[%clk 0:03:17.1]} 19. Qg3 {[%clk 0:03:01]} 19...
Qc7 {[%clk 0:03:07.9]} 20. Bxg5 {[%clk 0:02:50.4]} 20... hxg5 {[%clk 0:03:06]}
21. Qxg5 {[%clk 0:02:49.5]} 21... Be6 {[%clk 0:02:18.6]} 22. Re3 {[%clk
0:01:58.3]} 22... g6 {[%clk 0:01:30.6]} 23. f4 {[%clk 0:01:45.9]} 23... Be7
{[%clk 0:00:54.5]} 24. Qg3 {[%clk 0:01:37.7]} 24... Bc5 {[%clk 0:00:51.2]} 25.
f5 {[%clk 0:00:17.3]} 25... Bxd4 {[%clk 0:00:46.4]} 26. cxd4 {[%clk 0:00:16.1]}
26... Qxc2 {[%clk 0:00:44.9]} 27. fxe6 {[%clk 0:00:14.2]} 27... Rxe6 {[%clk
0:00:43.3]} 28. Rf1 {[%clk 0:00:13]} 28... Rc8 {[%clk 0:00:39.5]} 29. Ref3
{[%clk 0:00:11.9]} 29... Rc7 {[%clk 0:00:36]} 30. h4 {[%clk 0:00:10.6]} 30...
Qe4 {[%clk 0:00:31.7]} 31. h5 {[%clk 0:00:09.6]} 31... Qxd4+ {[%clk 0:00:30.4]}
32. Kh1 {[%clk 0:00:08.1]} 32... Qxe5 {[%clk 0:00:28.9]} 33. Qxe5 {[%clk
0:00:04.8]} 33... Rxe5 {[%clk 0:00:27.4]} 34. hxg6 {[%clk 0:00:04.7]} 34... fxg6
{[%clk 0:00:24.2]} 35. Rf8+ {[%clk 0:00:03.6]} 35... Kg7 {[%clk 0:00:22.9]} 36.
Rd8 {[%clk 0:00:02.9]} 36... Rf5 {[%clk 0:00:19.8]} 37. Rd1 {[%clk 0:00:01.4]}
37... Rcf7 {[%clk 0:00:14.7]} 38. Rd7 {[%clk 0:00:00.9]} 38... Rxd7 {[%clk
0:00:13.3]} 0-1

[Event "Live Chess"]
[Site "Chess.com"]
[Date "2024.06.02"]
[Round "-"]
[White "grillage"]
[Black "goldinspiredphoenix"]
[Result "1-0"]
[WhiteElo "1872"]
[BlackElo "1478"]
[TimeControl "300"]
[EndTime "8:17:30 PDT"]
[Termination "grillage won by checkmate"]

1. d4 {[%clk 0:04:57.3]} 1... d5 {[%clk 0:04:57.7]} 2. Nf3 {[%clk 0:04:56.1]}
2... c5 {[%clk 0:04:55.3]} 3. c4 {[%clk 0:04:54.6]} 3... e6 {[%clk 0:04:53.5]}
4. cxd5 {[%clk 0:04:53]} 4... exd5 {[%clk 0:04:51.8]} 5. g3 {[%clk 0:04:51.9]}
5... cxd4 {[%clk 0:04:50.9]} 6. Nxd4 {[%clk 0:04:49.6]} 6... Nc6 {[%clk
0:04:50]} 7. Bg2 {[%clk 0:04:45.2]} 7... Bc5 {[%clk 0:04:49.1]} 8. Nxc6 {[%clk
0:04:38.7]} 8... bxc6 {[%clk 0:04:47.6]} 9. O-O {[%clk 0:04:33.8]} 9... Nf6
{[%clk 0:04:46.7]} 10. Qc2 {[%clk 0:04:29]} 10... Qb6 {[%clk 0:04:41.8]} 11. Nc3
{[%clk 0:04:23.5]} 11... Bd4 {[%clk 0:04:18.3]} 12. Bf4 {[%clk 0:04:01.5]} 12...
O-O {[%clk 0:04:10.4]} 13. Na4 {[%clk 0:03:54.6]} 13... Qb7 {[%clk 0:03:58.8]}
14. e3 {[%clk 0:03:38.4]} 14... Bb6 {[%clk 0:03:56.2]} 15. Nxb6 {[%clk
0:03:29.6]} 15... axb6 {[%clk 0:03:54.6]} 16. a3 {[%clk 0:03:26.3]} 16... Be6
{[%clk 0:03:52.6]} 17. Rac1 {[%clk 0:03:22.7]} 17... c5 {[%clk 0:03:50.6]} 18.
Bg5 {[%clk 0:03:01.5]} 18... Qe7 {[%clk 0:03:37.8]} 19. e4 {[%clk 0:02:55.7]}
19... dxe4 {[%clk 0:03:31.2]} 20. Bxe4 {[%clk 0:02:54.3]} 20... Bh3 {[%clk
0:03:28.3]} 21. Rfe1 {[%clk 0:02:47]} 21... Qa7 {[%clk 0:02:59.7]} 22. Bxf6
{[%clk 0:02:43.9]} 22... gxf6 {[%clk 0:02:55.4]} 23. Bxh7+ {[%clk 0:02:42.7]}
23... Kh8 {[%clk 0:02:53.9]} 24. Bf5 {[%clk 0:02:37.4]} 24... Rae8 {[%clk
0:02:26.5]} 25. Bxh3 {[%clk 0:02:26.9]} 25... Rxe1+ {[%clk 0:02:13.8]} 26. Rxe1
{[%clk 0:02:22.8]} 26... Qa5 {[%clk 0:02:12.7]} 27. Qe2 {[%clk 0:02:18]} 27...
Rg8 {[%clk 0:01:53.1]} 28. Qh5+ {[%clk 0:02:11]} 28... Kg7 {[%clk 0:01:50.9]}
29. Re4 {[%clk 0:02:08.6]} 29... Kf8 {[%clk 0:01:36.3]} 30. Qh6+ {[%clk
0:02:01.9]} 30... Rg7 {[%clk 0:01:30.7]} 31. Qxf6 {[%clk 0:01:58.7]} 31... Rh7
{[%clk 0:01:17]} 32. Qd8+ {[%clk 0:01:48.8]} 32... Kg7 {[%clk 0:01:14.2]} 33.
Rg4+ {[%clk 0:01:44.9]} 33... Kh6 {[%clk 0:01:13]} 34. Qg5# {[%clk 0:01:42]} 1-0

[Event "Live Chess"]
[Site "Chess.com"]
[Date "2024.06.02"]
[Round "-"]
[White "kylet1990"]
[Black "matt1979"]
[Result "1-0"]
[WhiteElo "782"]
[BlackElo "1400"]
[TimeControl "300"]
[EndTime "8:17:39 PDT"]
[Termination "kylet1990 won by checkmate"]

1. e4 {[%clk 0:04:59.1]} 1... d6 {[%clk 0:04:58.3]} 2. d4 {[%clk 0:04:56.7]}
2... Nf6 {[%clk 0:04:57]} 3. Nc3 {[%clk 0:04:54.8]} 3... Nbd7 {[%clk 0:04:56.2]}
4. e5 {[%clk 0:04:53.8]} 4... dxe5 {[%clk 0:04:52.3]} 5. dxe5 {[%clk 0:04:52.3]}
5... Nxe5 {[%clk 0:04:51.3]} 6. Qxd8+ {[%clk 0:04:49.8]} 6... Kxd8 {[%clk
0:04:50.8]} 7. Bf4 {[%clk 0:04:48.2]} 7... Nc6 {[%clk 0:04:43]} 8. O-O-O+ {[%clk
0:04:46.4]} 8... Bd7 {[%clk 0:04:41.5]} 9. Nf3 {[%clk 0:04:43.1]} 9... h6 {[%clk
0:04:31.8]} 10. Bb5 {[%clk 0:04:41.1]} 10... a6 {[%clk 0:04:27.4]} 11. Bxc6
{[%clk 0:04:39.6]} 11... bxc6 {[%clk 0:04:26.5]} 12. Ne5 {[%clk 0:04:38.2]}
12... Ke8 {[%clk 0:04:16.1]} 13. f3 {[%clk 0:04:28.7]} 13... Be6 {[%clk
0:04:10.6]} 14. Kb1 {[%clk 0:04:20.8]} 14... c5 {[%clk 0:03:54.1]} 15. Ne4
{[%clk 0:04:11.6]} 15... Nxe4 {[%clk 0:03:51.5]} 16. fxe4 {[%clk 0:04:10.2]}
16... g5 {[%clk 0:03:49.1]} 17. Be3 {[%clk 0:04:07.3]} 17... Bg7 {[%clk
0:03:46]} 18. Nc6 {[%clk 0:04:03.1]} 18... c4 {[%clk 0:03:36.7]} 19. c3 {[%clk
0:03:57.8]} 19... Bd7 {[%clk 0:03:23.9]} 20. Nb4 {[%clk 0:03:47]} 20... a5
{[%clk 0:03:15.1]} 21. Nd5 {[%clk 0:03:45.1]} 21... c6 {[%clk 0:03:03.1]} 22.
Nc7+ {[%clk 0:03:43.4]} 22... Kd8 {[%clk 0:02:55.2]} 23. Nxa8 {[%clk 0:03:41.7]}
23... e6 {[%clk 0:02:52.6]} 24. Bb6+ {[%clk 0:03:39]} 24... Ke7 {[%clk
0:02:51.5]} 25. Nc7 {[%clk 0:03:35.4]} 25... Rb8 {[%clk 0:02:45.9]} 26. Bxa5
{[%clk 0:03:30.6]} 26... Rb7 {[%clk 0:02:40.5]} 27. Na6 {[%clk 0:03:23.8]} 27...
Rb5 {[%clk 0:02:25.2]} 28. Bb4+ {[%clk 0:03:15.5]} 28... Kd8 {[%clk 0:02:16.3]}
29. Nc5 {[%clk 0:03:10.7]} 29... Rxc5 {[%clk 0:02:06.6]} 30. Bxc5 {[%clk
0:03:08.1]} 30... Kc7 {[%clk 0:01:57.5]} 31. Bd6+ {[%clk 0:03:02.3]} 31... Kd8
{[%clk 0:01:52.4]} 32. b3 {[%clk 0:02:58.9]} 32... cxb3 {[%clk 0:01:50.9]} 33.
axb3 {[%clk 0:02:56.9]} 33... Bxc3 {[%clk 0:01:49.4]} 34. Rd3 {[%clk 0:02:51.8]}
34... Bg7 {[%clk 0:01:42.1]} 35. Rhd1 {[%clk 0:02:42.4]} 35... Kc8 {[%clk
0:01:32.4]} 36. Be5 {[%clk 0:02:38.3]} 36... Bxe5 {[%clk 0:01:29.2]} 37. Rxd7
{[%clk 0:02:36.7]} 37... Bxh2 {[%clk 0:01:26]} 38. Rxf7 {[%clk 0:02:33]} 38...
Bf4 {[%clk 0:01:16.5]} 39. Rxf4 {[%clk 0:02:28.4]} 39... gxf4 {[%clk 0:01:15.3]}
40. Rf1 {[%clk 0:02:27.7]} 40... e5 {[%clk 0:01:14.4]} 41. Rd1 {[%clk
0:02:25.5]} 41... Kc7 {[%clk 0:01:12.1]} 42. Rh1 {[%clk 0:02:24.9]} 42... Kd6
{[%clk 0:01:08.3]} 43. Rxh6+ {[%clk 0:02:24.1]} 43... Kc5 {[%clk 0:01:07.6]} 44.
Rh5 {[%clk 0:02:22]} 44... Kd4 {[%clk 0:01:06.5]} 45. Rh6 {[%clk 0:02:20.2]}
45... c5 {[%clk 0:01:04.6]} 46. Kc1 {[%clk 0:02:18.4]} 46... Kxe4 {[%clk
0:01:03.7]} 47. Kd2 {[%clk 0:02:15.7]} 47... Kd5 {[%clk 0:00:55.9]} 48. Ke2
{[%clk 0:02:13.3]} 48... Kd4 {[%clk 0:00:49.6]} 49. Rh5 {[%clk 0:02:08.6]} 49...
e4 {[%clk 0:00:45.9]} 50. Rh4 {[%clk 0:02:05.7]} 50... Kc3 {[%clk 0:00:40.8]}
51. Rxf4 {[%clk 0:02:03.7]} 51... Kxb3 {[%clk 0:00:39.2]} 52. Rxe4 {[%clk
0:02:02.6]} 52... c4 {[%clk 0:00:37.6]} 53. Kf3 {[%clk 0:01:58.4]} 53... c3
{[%clk 0:00:36.1]} 54. Re1 {[%clk 0:01:57.1]} 54... c2 {[%clk 0:00:34.9]} 55. g4
{[%clk 0:01:56.2]} 55... Kb2 {[%clk 0:00:33.5]} 56. g5 {[%clk 0:01:54.9]} 56...
c1=Q {[%clk 0:00:32.2]} 57. Rxc1 {[%clk 0:01:53.7]} 57... Kxc1 {[%clk
0:00:31.7]} 58. g6 {[%clk 0:01:52.7]} 58... Kc2 {[%clk 0:00:31.4]} 59. g7 {[%clk
0:01:51.7]} 59... Kd3 {[%clk 0:00:30]} 60. g8=Q {[%clk 0:01:50.1]} 60... Kd4
{[%clk 0:00:29.3]} 61. Qe6 {[%clk 0:01:47.6]} 61... Kd3 {[%clk 0:00:28.5]} 62.
Qe5 {[%clk 0:01:46.2]} 62... Kd2 {[%clk 0:00:27.4]} 63. Qe4 {[%clk 0:01:44.6]}
63... Kc3 {[%clk 0:00:26.4]} 64. Qd5 {[%clk 0:01:43.1]} 64... Kc2 {[%clk
0:00:25.4]} 65. Qd4 {[%clk 0:01:41.8]} 65... Kc1 {[%clk 0:00:24.5]} 66. Qd3
{[%clk 0:01:40.3]} 66... Kb2 {[%clk 0:00:23.5]} 67. Qc4 {[%clk 0:01:38.8]} 67...
Kb1 {[%clk 0:00:22.3]} 68. Qe2 {[%clk 0:01:37.1]} 68... Kc1 {[%clk 0:00:21.4]}
69. Ke3 {[%clk 0:01:35.3]} 69... Kb1 {[%clk 0:00:20.8]} 70. Qd2 {[%clk 0:01:34]}
70... Ka1 {[%clk 0:00:20]} 71. Kd3 {[%clk 0:01:33.1]} 71... Kb1 {[%clk
0:00:19.2]} 72. Kc3 {[%clk 0:01:32]} 72... Ka1 {[%clk 0:00:18.7]} 73. Qb2#
{[%clk 0:01:31]} 1-0

[Event "Live Chess"]
[Site "Chess.com"]
[Date "2024.06.02"]
[Round "-"]
[White "Duke_of_Bebington"]
[Black "Plimsol"]
[Result "0-1"]
[WhiteElo "1574"]
[BlackElo "2374"]
[TimeControl "300"]
[EndTime "8:17:44 PDT"]
[Termination "Plimsol won by resignation"]

1. e4 {[%clk 0:04:56.8]} 1... c5 {[%clk 0:04:58.3]} 2. c3 {[%clk 0:04:55.2]}
2... d5 {[%clk 0:04:55.6]} 3. exd5 {[%clk 0:04:54]} 3... Qxd5 {[%clk 0:04:55]}
4. Nf3 {[%clk 0:04:52.6]} 4... Nf6 {[%clk 0:04:54.2]} 5. Be2 {[%clk 0:04:49.3]}
5... e6 {[%clk 0:04:52.6]} 6. O-O {[%clk 0:04:48.9]} 6... Be7 {[%clk 0:04:51.1]}
7. d4 {[%clk 0:04:42.2]} 7... cxd4 {[%clk 0:04:49.9]} 8. Nxd4 {[%clk 0:04:41.5]}
8... a6 {[%clk 0:04:44]} 9. Na3 {[%clk 0:04:35.7]} 9... O-O {[%clk 0:04:39.9]}
10. Nac2 {[%clk 0:04:33.5]} 10... Rd8 {[%clk 0:04:36.1]} 11. Ne3 {[%clk
0:04:29.8]} 11... Qc5 {[%clk 0:04:34.7]} 12. Qb3 {[%clk 0:04:21]} 12... Nc6
{[%clk 0:04:21.3]} 13. Bd2 {[%clk 0:04:03.3]} 13... Nxd4 {[%clk 0:04:09.5]} 14.
cxd4 {[%clk 0:04:03.2]} 14... Qxd4 {[%clk 0:04:08.9]} 15. Rad1 {[%clk
0:03:48.7]} 15... Qd7 {[%clk 0:03:57.6]} 16. Bc3 {[%clk 0:03:36.2]} 16... Qe8
{[%clk 0:03:50.4]} 17. Nc4 {[%clk 0:03:34.7]} 17... Nd5 {[%clk 0:03:41.2]} 18.
Ba5 {[%clk 0:03:27.4]} 18... b6 {[%clk 0:03:30]} 19. Nxb6 {[%clk 0:03:25.1]}
19... Rb8 {[%clk 0:03:26.1]} 20. Nxc8 {[%clk 0:02:33.2]} 20... Rdxc8 {[%clk
0:03:23.2]} 21. Qg3 {[%clk 0:02:11.1]} 21... Qa4 {[%clk 0:03:16.8]} 22. Bc3
{[%clk 0:02:09.1]} 22... Nxc3 {[%clk 0:03:13.3]} 23. bxc3 {[%clk 0:02:07.2]}
23... Bf6 {[%clk 0:03:08.5]} 0-1

[Event "Live Chess"]
[Site "Chess.com"]
[Date "2024.06.02"]
[Round "-"]
[White "wadsy27"]
[Black "Inglaterra"]
[Result "1-0"]
[WhiteElo "2607"]
[BlackElo "2063"]
[TimeControl "300"]
[EndTime "8:17:51 PDT"]
[Termination "wadsy27 won by resignation"]

1. d4 {[%clk 0:04:57.8]} 1... d5 {[%clk 0:04:58.8]} 2. Bf4 {[%clk 0:04:56.5]}
2... Nf6 {[%clk 0:04:56.9]} 3. e3 {[%clk 0:04:55.9]} 3... e6 {[%clk 0:04:56.4]}
4. Nf3 {[%clk 0:04:54.5]} 4... Bd6 {[%clk 0:04:55.9]} 5. Bg3 {[%clk 0:04:53.5]}
5... O-O {[%clk 0:04:55.4]} 6. Nbd2 {[%clk 0:04:52]} 6... b6 {[%clk 0:04:55]} 7.
c3 {[%clk 0:04:49.6]} 7... Bb7 {[%clk 0:04:54.1]} 8. Bd3 {[%clk 0:04:48.5]} 8...
Nbd7 {[%clk 0:04:53.4]} 9. Qe2 {[%clk 0:04:47.6]} 9... Ne4 {[%clk 0:04:52]} 10.
Ne5 {[%clk 0:04:40.8]} 10... f5 {[%clk 0:04:49.5]} 11. Ndf3 {[%clk 0:04:28]}
11... Nxg3 {[%clk 0:04:27.9]} 12. hxg3 {[%clk 0:04:23.9]} 12... Nxe5 {[%clk
0:04:27.4]} 13. Nxe5 {[%clk 0:04:20.7]} 13... Bxe5 {[%clk 0:04:26.2]} 14. dxe5
{[%clk 0:04:20]} 14... c5 {[%clk 0:04:16.4]} 15. Qh5 {[%clk 0:04:02.1]} 15... h6
{[%clk 0:04:14.3]} 16. Qg6 {[%clk 0:03:58.5]} 16... Qe8 {[%clk 0:04:12.8]} 17.
Rxh6 {[%clk 0:03:55.4]} 17... Qxg6 {[%clk 0:04:09.5]} 18. Rxg6 {[%clk
0:03:54.6]} 18... Kf7 {[%clk 0:04:07]} 19. Rg5 {[%clk 0:03:54.1]} 19... Rh8
{[%clk 0:04:05.4]} 20. O-O-O {[%clk 0:03:48.6]} 20... Rh2 {[%clk 0:04:03.7]} 21.
Bf1 {[%clk 0:03:46.3]} 21... Rd8 {[%clk 0:03:54.7]} 22. g4 {[%clk 0:03:41.5]}
22... g6 {[%clk 0:03:41.7]} 23. gxf5 {[%clk 0:03:39.9]} 23... gxf5 {[%clk
0:03:34.4]} 24. Be2 {[%clk 0:03:29.9]} 24... Rg8 {[%clk 0:03:29.5]} 25. Rxg8
{[%clk 0:03:25.3]} 25... Kxg8 {[%clk 0:03:29.4]} 26. Bf3 {[%clk 0:03:23.8]}
26... Ba6 {[%clk 0:03:22]} 27. b3 {[%clk 0:03:12.1]} 27... Rh4 {[%clk
0:03:10.1]} 28. c4 {[%clk 0:03:09]} 28... dxc4 {[%clk 0:03:04.1]} 29. Rd8+
{[%clk 0:03:07.3]} 29... Kf7 {[%clk 0:03:01.9]} 30. Rd7+ {[%clk 0:03:06.9]}
30... Kg6 {[%clk 0:02:59.4]} 31. Rxa7 {[%clk 0:03:04.5]} 31... Bb5 {[%clk
0:02:43.8]} 32. Rb7 {[%clk 0:03:01.2]} 32... cxb3 {[%clk 0:02:41.4]} 33. axb3
{[%clk 0:03:01.1]} 33... Rb4 {[%clk 0:02:35.4]} 34. Rxb6 {[%clk 0:02:59.1]}
34... Rxb3 {[%clk 0:02:23.6]} 35. Rxe6+ {[%clk 0:02:57.4]} 35... Kg5 {[%clk
0:02:15.6]} 36. Bd1 {[%clk 0:02:50.3]} 36... Rd3 {[%clk 0:02:02.1]} 37. g3
{[%clk 0:02:46.3]} 1-0

[Event "Live Chess"]
[Site "Chess.com"]
[Date "2024.06.02"]
[Round "-"]
[White "StoreySniper"]
[Black "Cruiseylee78"]
[Result "1-0"]
[WhiteElo "2489"]
[BlackElo "1684"]
[TimeControl "300"]
[EndTime "8:18:11 PDT"]
[Termination "StoreySniper won by resignation"]

1. e4 {[%clk 0:04:57.9]} 1... d6 {[%clk 0:04:51.5]} 2. d4 {[%clk 0:04:56.6]}
2... Nd7 {[%clk 0:04:50.4]} 3. f4 {[%clk 0:04:54]} 3... e5 {[%clk 0:04:49]} 4.
Nf3 {[%clk 0:04:52.8]} 4... c6 {[%clk 0:04:47.1]} 5. Nc3 {[%clk 0:04:50.1]} 5...
Qc7 {[%clk 0:04:46]} 6. Be3 {[%clk 0:04:48.7]} 6... Be7 {[%clk 0:04:37.4]} 7.
Qd2 {[%clk 0:04:47.9]} 7... h6 {[%clk 0:04:36.5]} 8. O-O-O {[%clk 0:04:46.4]}
8... b5 {[%clk 0:04:33.8]} 9. Kb1 {[%clk 0:04:36]} 9... Ngf6 {[%clk 0:04:31.4]}
10. Bd3 {[%clk 0:04:28.3]} 10... Ng4 {[%clk 0:04:25.9]} 11. Bg1 {[%clk
0:04:24.3]} 11... a5 {[%clk 0:04:16.1]} 12. h3 {[%clk 0:04:22.2]} 12... Ngf6
{[%clk 0:04:10.6]} 13. dxe5 {[%clk 0:04:17.5]} 13... dxe5 {[%clk 0:04:09.4]} 14.
fxe5 {[%clk 0:04:16.8]} 14... Nxe5 {[%clk 0:04:07.9]} 15. Nxe5 {[%clk
0:04:04.8]} 15... Qxe5 {[%clk 0:04:00.9]} 16. Bh2 {[%clk 0:04:04.1]} 16... Qe6
{[%clk 0:03:49]} 17. e5 {[%clk 0:03:50.8]} 17... Nd5 {[%clk 0:03:45.9]} 18. Be4
{[%clk 0:03:42.3]} 18... Bb7 {[%clk 0:03:36.5]} 19. Nxd5 {[%clk 0:03:35.5]}
19... cxd5 {[%clk 0:03:35.5]} 20. Bxd5 {[%clk 0:03:34.6]} 20... Bxd5 {[%clk
0:03:34]} 21. Qxd5 {[%clk 0:03:33.5]} 21... Qxd5 {[%clk 0:03:28.4]} 22. Rxd5
{[%clk 0:03:32]} 22... b4 {[%clk 0:03:22.8]} 23. Rhd1 {[%clk 0:03:10.9]} 23...
O-O {[%clk 0:03:21.7]} 24. Bg1 {[%clk 0:03:04.4]} 24... Rfd8 {[%clk 0:03:18.6]}
25. Rxd8+ {[%clk 0:03:00.6]} 25... Rxd8 {[%clk 0:03:18.5]} 26. Rxd8+ {[%clk
0:02:59.2]} 26... Bxd8 {[%clk 0:03:17.7]} 27. c3 {[%clk 0:02:54.3]} 27... bxc3
{[%clk 0:03:14.4]} 28. bxc3 {[%clk 0:02:53.6]} 28... Kf8 {[%clk 0:03:13.3]} 29.
Kc2 {[%clk 0:02:52.6]} 29... Ke7 {[%clk 0:03:12.3]} 30. Kd3 {[%clk 0:02:51.8]}
30... Ke6 {[%clk 0:03:11.7]} 31. Ke4 {[%clk 0:02:49.2]} 31... Bc7 {[%clk
0:03:09.3]} 32. Bd4 {[%clk 0:02:46.7]} 32... f6 {[%clk 0:03:04.8]} 33. exf6
{[%clk 0:02:44.8]} 33... gxf6 {[%clk 0:03:04.7]} 34. g4 {[%clk 0:02:42.3]} 34...
a4 {[%clk 0:02:52.7]} 35. c4 {[%clk 0:02:39.5]} 35... Bd6 {[%clk 0:02:50.5]} 36.
Be3 {[%clk 0:02:38]} 36... h5 {[%clk 0:02:48.3]} 37. gxh5 {[%clk 0:02:36.3]}
37... Bf8 {[%clk 0:02:46]} 38. h6 {[%clk 0:02:33.6]} 38... Kf7 {[%clk
0:02:44.1]} 39. Kf5 {[%clk 0:02:31.2]} 39... Kg8 {[%clk 0:02:42.7]} 40. Kg6
{[%clk 0:02:29.8]} 40... Be7 {[%clk 0:02:38.8]} 41. h7+ {[%clk 0:02:27.9]} 41...
Kh8 {[%clk 0:02:37.9]} 42. Bd4 {[%clk 0:02:26.9]} 1-0

[Event "Live Chess"]
[Site "Chess.com"]
[Date "2024.06.02"]
[Round "-"]
[White "upoe610"]
[Black "FlyingChessKestrel13"]
[Result "0-1"]
[WhiteElo "2148"]
[BlackElo "2075"]
[TimeControl "300"]
[EndTime "8:19:05 PDT"]
[Termination "FlyingChessKestrel13 won by resignation"]

1. c4 {[%clk 0:04:56.7]} 1... e5 {[%clk 0:04:58.6]} 2. g3 {[%clk 0:04:55.9]}
2... Nc6 {[%clk 0:04:57.8]} 3. Bg2 {[%clk 0:04:55.8]} 3... Nf6 {[%clk
0:04:57.1]} 4. Nc3 {[%clk 0:04:54.9]} 4... Bb4 {[%clk 0:04:56.3]} 5. Nd5 {[%clk
0:04:53.6]} 5... Bc5 {[%clk 0:04:54.9]} 6. e3 {[%clk 0:04:52.3]} 6... O-O {[%clk
0:04:53.2]} 7. Ne2 {[%clk 0:04:51.4]} 7... d6 {[%clk 0:04:52.5]} 8. Nec3 {[%clk
0:04:50.6]} 8... Nxd5 {[%clk 0:04:49.3]} 9. Nxd5 {[%clk 0:04:49.6]} 9... Ne7
{[%clk 0:04:48.3]} 10. a3 {[%clk 0:04:48.7]} 10... c6 {[%clk 0:04:44.9]} 11.
Nxe7+ {[%clk 0:04:45.8]} 11... Qxe7 {[%clk 0:04:44.8]} 12. b4 {[%clk 0:04:45.5]}
12... Bb6 {[%clk 0:04:43.6]} 13. Bb2 {[%clk 0:04:45.4]} 13... Bf5 {[%clk
0:04:40]} 14. O-O {[%clk 0:04:44.3]} 14... Bd3 {[%clk 0:04:38.5]} 15. c5 {[%clk
0:04:37.9]} 15... Bxf1 {[%clk 0:04:35]} 16. cxd6 {[%clk 0:04:33.7]} 16... Qxd6
{[%clk 0:04:32.1]} 17. Bxf1 {[%clk 0:04:33]} 17... Rad8 {[%clk 0:04:30.9]} 18.
Bc3 {[%clk 0:04:31.4]} 18... e4 {[%clk 0:04:29]} 19. Qg4 {[%clk 0:04:27.8]}
19... Qg6 {[%clk 0:04:25.5]} 20. Qf4 {[%clk 0:04:25.8]} 20... Rd7 {[%clk
0:04:19.5]} 21. Bh3 {[%clk 0:04:23]} 21... Re7 {[%clk 0:04:15.5]} 22. Bf5 {[%clk
0:04:22]} 22... Qh5 {[%clk 0:04:06.1]} 23. Bxe4 {[%clk 0:04:17.5]} 23... Bc7
{[%clk 0:04:03.5]} 24. Qf3 {[%clk 0:04:14.2]} 24... Qxf3 {[%clk 0:04:02.1]} 25.
Bxf3 {[%clk 0:04:12.9]} 25... Be5 {[%clk 0:04:01.7]} 26. d4 {[%clk 0:04:08.7]}
26... Bf6 {[%clk 0:04:00]} 27. Kg2 {[%clk 0:04:06.7]} 27... Rd8 {[%clk
0:03:57.8]} 28. Bb2 {[%clk 0:04:05.1]} 28... g6 {[%clk 0:03:56.6]} 29. Rc1
{[%clk 0:04:03.7]} 29... h5 {[%clk 0:03:54.9]} 30. h4 {[%clk 0:04:01.8]} 30...
Red7 {[%clk 0:03:53.2]} 31. a4 {[%clk 0:03:57.8]} 31... Be7 {[%clk 0:03:50.9]}
32. b5 {[%clk 0:03:54.7]} 32... cxb5 {[%clk 0:03:48.6]} 33. axb5 {[%clk
0:03:54.6]} 33... a6 {[%clk 0:03:47]} 34. b6 {[%clk 0:03:44.7]} 34... a5 {[%clk
0:03:42.8]} 35. Ra1 {[%clk 0:03:40.3]} 35... Bb4 {[%clk 0:03:40.5]} 36. Ba3
{[%clk 0:03:38.8]} 36... Rd6 {[%clk 0:03:37.8]} 37. Bxb4 {[%clk 0:03:36.8]}
37... axb4 {[%clk 0:03:36.3]} 38. Bxb7 {[%clk 0:03:34.2]} 38... Rxb6 {[%clk
0:03:35.3]} 39. Be4 {[%clk 0:03:33.1]} 39... b3 {[%clk 0:03:33]} 40. Rb1 {[%clk
0:03:29.2]} 40... b2 {[%clk 0:03:30.9]} 41. Kf1 {[%clk 0:03:28.6]} 41... Rc8
{[%clk 0:03:25.4]} 42. Ke2 {[%clk 0:03:25.5]} 42... Rc1 {[%clk 0:03:23.6]} 43.
Kd2 {[%clk 0:03:24.8]} 43... Rxb1 {[%clk 0:03:22.5]} 44. Bxb1 {[%clk 0:03:20.3]}
44... Kf8 {[%clk 0:03:22]} 45. Kc2 {[%clk 0:03:19.1]} 45... Ke7 {[%clk
0:03:21.4]} 46. Ba2 {[%clk 0:03:18.4]} 46... f6 {[%clk 0:03:17.7]} 47. e4 {[%clk
0:03:15.7]} 47... g5 {[%clk 0:03:10.4]} 48. f4 {[%clk 0:03:09.6]} 48... gxh4
{[%clk 0:03:07.9]} 49. gxh4 {[%clk 0:03:09.5]} 49... Rb4 {[%clk 0:03:05.1]} 50.
e5 {[%clk 0:03:07.8]} 50... Rxd4 {[%clk 0:03:03.7]} 51. exf6+ {[%clk 0:03:06.7]}
51... Kxf6 {[%clk 0:03:02.8]} 52. Kxb2 {[%clk 0:03:05.9]} 52... Rxf4 {[%clk
0:03:01.8]} 0-1